lending/lending_fUSD_20250131
["ID","MTS","AMOUNT","RATE_DAILY","PERIOD"]
[351005523,1738282260311,-500.0,0.00019315,3]
[351005524,1738282260320,-500.0,0.00019315,3]
[351005525,1738282260329,-1140.24,0.00019315,3]
[351005526,1738282260338,-500.0,0.00019315,3]
[351005527,1738282260349,-505.00070789,0.00019315,3]
[351005528,1738282260359,-8700.96,0.00019315,3]
[351005530,1738282260368,-533.4,0.00019315,3]
[351005532,1738282260377,-3473.9,0.00019315,3]
[351005534,1738282260386,-1937.17,0.00019315,3]
[351005536,1738282260395,-2435.8,0.00019315,3]
[351005538,1738282260404,-4125.7,0.00019315,3]
[351005540,1738282260413,-500.0,0.00019315,3]
[351005542,1738282260422,-2256.99,0.00019315,3]
[351005544,1738282260431,-2769.31,0.00019315,3]
[351005546,1738282260441,-500.0,0.00019315,3]
[351005548,1738282260450,-2215.09,0.00019315,3]
[351005549,1738282260459,-702.17,0.00019315,3]
[351005551,1738282260469,-500.0,0.00019315,3]
[351005553,1738282260478,-567.75,0.00019315,3]
[351005556,1738282260487,-980.01,0.00019315,3]
[351005558,1738282260497,-507.43117192,0.00019315,3]
[351005559,1738282260507,-500.0,0.00019315,3]
[351005561,1738282260517,-861.89,0.00019315,3]
[351005563,1738282260526,-802.25,0.00019315,3]
[351005565,1738282260536,-1299.51,0.00019315,3]
[351005567,1738282260545,-1124.58,0.00019315,3]
[351005569,1738282260555,-500.0,0.00019315,3]
[351005571,1738282260565,-500.0,0.00019315,3]
[351005573,1738282260574,-500.0,0.00019315,3]
[351005575,1738282260584,-500.0,0.00019315,3]
[351005577,1738282260595,-1898.4,0.00019315,3]
[351005579,1738282260604,-1048.65,0.00019315,3]
[351005581,1738282260613,-271.7335292,0.00019315,3]
[351005583,1738282260623,-857.57,0.00019315,3]
[351005585,1738282260632,-500.0,0.00019315,3]
[351005587,1738282260642,-1444.62,0.00019315,3]
[351005589,1738282260651,-4121.1,0.00019315,3]
[351005591,1738282260660,-5726.18,0.00019315,3]
[351005593,1738282260669,-2338.3,0.00019315,3]
[351005595,1738282260680,-574.11,0.00019315,3]
[351005597,1738282260691,-4490.66,0.00019315,3]
[351005599,1738282260701,-596.02,0.00019315,3]
[351005601,1738282260710,-852.81,0.00019315,3]
[351005603,1738282260721,-500.0,0.00019315,3]
[351005605,1738282260731,-1971.77,0.00019315,3]
[351005607,1738282260741,-500.0,0.00019315,3]
[351005609,1738282260751,-913.55,0.00019315,3]
[351005611,1738282260763,-5021.87,0.00019315,3]
[351005613,1738282260773,-150.0,0.00019315,3]
[351005615,1738282260783,-691.02,0.00019315,3]
[351005617,1738282260792,-500.0,0.00019315,3]
[351005619,1738282260803,-2455.72,0.00019315,3]
[351005621,1738282260812,-754.24,0.00019315,3]
[351005623,1738282260821,-601.18,0.00019315,3]
[351005625,1738282260831,-814.43,0.00019315,3]
[351005627,1738282260840,-518.39,0.00019315,3]
[351005629,1738282260850,-500.0,0.00019315,3]
[351005631,1738282260859,-11668.16,0.00019315,3]
[351005633,1738282260868,-500.0,0.00019315,3]
[351005635,1738282260878,-2758.15,0.00019315,3]
[351005637,1738282260889,-3474.02,0.00019315,3]
[351005639,1738282260898,-1672.19,0.00019315,3]
[351005641,1738282260907,-1886.75,0.00019315,3]
[351005643,1738282260916,-500.0,0.00019315,3]
[351005645,1738282260926,-2165.14,0.00019315,3]
[351005647,1738282260935,-533.52,0.00019315,3]
[351005649,1738282260945,-2604.78,0.00019315,3]
[351005651,1738282260955,-2201.38,0.00019315,3]
[351005653,1738282260964,-2773.8,0.00019315,3]
[351005655,1738282260974,-500.0,0.00019315,3]
[351005657,1738282260983,-1133.48,0.00019315,3]
[351005659,1738282260992,-18160.54,0.00019315,3]
[351005661,1738282261002,-6147.47,0.00019315,3]
[351005663,1738282261012,-500.0,0.00019315,3]
[351005665,1738282261021,-3111.56,0.00019315,3]
[351005667,1738282261031,-500.0,0.00019315,3]
[351005669,1738282261040,-500.0,0.00019315,3]
[351005670,1738282261049,-2440.02,0.00019315,3]
[351005673,1738282261059,-3782.14,0.00019315,3]
[351005674,1738282261068,-3279.4,0.00019315,3]
[351005676,1738282261079,-500.0,0.00019315,3]
[351005679,1738282261088,-518.91,0.00019315,3]
[351005680,1738282261098,-1062.63,0.00019315,3]
[351005682,1738282261108,-2155.62,0.00019315,3]
[351005685,1738282261118,-9210.12,0.00019315,3]
[351005686,1738282261127,-859.68,0.00019315,3]
[351005688,1738282261137,-7812.53,0.00019315,3]
[351005690,1738282261147,-696.08,0.00019315,3]
[351005693,1738282261158,-3691.41,0.00019315,3]
[351005695,1738282261167,-2781.71,0.00019315,3]
[351005697,1738282261177,-500.0,0.00019315,3]
[351005699,1738282261187,-1005.13,0.00019315,3]
[351005701,1738282261197,-3087.45,0.00019315,3]
[351005703,1738282261206,-500.0,0.00019315,3]
[351005705,1738282261216,-500.0,0.00019315,3]
[351005707,1738282261226,-694.66,0.00019315,3]
[351005709,1738282261235,-793.31,0.00019315,3]
[351005711,1738282261244,-5318.45,0.00019315,3]
[351005713,1738282261255,-1324.42,0.00019315,3]
[351005715,1738282261264,-3055.09,0.00019315,3]
[351005717,1738282261274,-1458.12,0.00019315,3]
[351005719,1738282261284,-528.96,0.00019315,3]
[351005721,1738282261294,-2843.59,0.00019315,3]
[351005723,1738282261304,-4190.59,0.00019315,3]
[351005724,1738282261314,-500.0,0.00019315,3]
[351005727,1738282261325,-1673.2,0.00019315,3]
[351005729,1738282261336,-500.0,0.00019315,3]
[351005731,1738282261347,-500.0,0.00019315,3]
[351005733,1738282261356,-503.36138024,0.00019315,3]
[351005735,1738282261365,-1672.99,0.00019315,3]
[351005737,1738282261375,-610.67,0.00019315,3]
[351005739,1738282261385,-3676.96,0.00019315,3]
[351005741,1738282261395,-2842.0,0.00019315,3]
[351005743,1738282261404,-500.0,0.00019315,3]
[351005745,1738282261414,-737.47,0.00019315,3]
[351005747,1738282261423,-500.0,0.00019315,3]
[351005749,1738282261432,-500.0,0.00019315,3]
[351005751,1738282261442,-2203.31,0.00019315,3]
[351005753,1738282261452,-1252.53,0.00019315,3]
[351005755,1738282261461,-407.17,0.00019315,3]
[351005757,1738282261471,-1572.77,0.00019315,3]
[351005759,1738282261480,-13332.76,0.00019315,3]
[351005761,1738282261489,-150.0,0.00019315,3]
[351005763,1738282261499,-932.56,0.00019315,3]
[351005765,1738282261509,-2466.03,0.00019315,3]
[351005767,1738282261518,-500.0,0.00019315,3]
[351005769,1738282261528,-500.0,0.00019315,3]
[351005771,1738282261537,-2461.61,0.00019315,3]
[351005773,1738282261546,-500.0,0.00019315,3]
[351005775,1738282261556,-150.0,0.00019315,2]
[351005777,1738282261565,-500.0,0.00019315,3]
[351005779,1738282261574,-2491.5,0.00019315,3]
[351005781,1738282261584,-500.0,0.00019315,3]
[351005783,1738282261595,-500.0,0.00019315,3]
[351005785,1738282261604,-1669.64,0.00019315,3]
[351005787,1738282261614,-3459.82,0.00019315,3]
[351005789,1738282261623,-500.0,0.00019315,3]
[351005791,1738282261632,-8514.26,0.00019315,3]
[351005793,1738282261642,-2472.6,0.00019315,3]
[351005795,1738282261651,-428.1298614,0.00019315,3]
[351005796,1738282261660,-615.04,0.00019315,3]
[351005798,1738282261670,-500.0,0.00019315,3]
[351005799,1738282261681,-500.0,0.00019315,3]
[351005800,1738282261691,-500.0,0.00019315,3]
[351005801,1738282261700,-500.0,0.00019315,3]
[351005802,1738282261710,-3035.07,0.00019315,3]
[351005803,1738282261719,-500.0,0.00019315,3]
[351005804,1738282261730,-3151.93,0.00019315,3]
[351005806,1738282261740,-752.6,0.00019315,3]
[351005808,1738282261749,-946.02,0.00019315,3]
[351005810,1738282261760,-615.11,0.00019315,3]
[351005812,1738282261770,-5307.17,0.00019315,3]
[351005814,1738282261780,-500.0,0.00019315,3]
[351005816,1738282261790,-500.0,0.00019315,3]
[351005818,1738282261800,-500.0,0.00019315,3]
[351005820,1738282261810,-1389.36,0.00019315,3]
[351005822,1738282261819,-500.0,0.00019315,3]
[351005825,1738282261829,-500.0,0.00019315,3]
[351005827,1738282261839,-838.18,0.00019315,3]
[351005829,1738282261849,-1112.47,0.00019315,3]
[351005831,1738282261859,-500.0,0.00019315,3]
[351005833,1738282261868,-500.0,0.00019315,3]
[351005835,1738282261878,-1217.3,0.00019315,3]
[351005837,1738282261887,-5473.6,0.00019315,3]
[351005839,1738282261896,-500.0,0.00019315,3]
[351005841,1738282261906,-500.0,0.00019315,3]
[351005843,1738282261915,-500.0,0.00019315,3]
[351005844,1738282261925,-500.0,0.00019315,3]
[351005846,1738282261935,-712.18,0.00019315,3]
[351005849,1738282261946,-573.31,0.00019315,3]
[351005850,1738282261955,-2567.47,0.00019315,3]
[351005853,1738282261965,-643.25,0.00019315,3]
[351005855,1738282261978,-500.0,0.00019315,3]
[351005857,1738282261988,-4858.91,0.00019315,3]
[351005859,1738282261998,-500.0,0.00019315,3]
[351005861,1738282262009,-500.0,0.00019315,3]
[351005863,1738282262019,-500.0,0.00019315,3]
[351005865,1738282262028,-890.24,0.00019315,3]
[351005867,1738282262038,-1726.39,0.00019315,3]
[351005869,1738282262048,-500.0,0.00019315,3]
[351005871,1738282262058,-1038.5,0.00019315,3]
[351005873,1738282262067,-893.88,0.00019315,3]
[351005875,1738282262077,-1436.67,0.00019315,3]
[351005877,1738282262087,-2827.86,0.00019315,3]
[351005879,1738282262097,-500.0,0.00019315,3]
[351005881,1738282262108,-295.51077728,0.00019315,3]
[351005883,1738282262118,-627.03,0.00019315,3]
[351005885,1738282262128,-500.0,0.00019315,3]
[351005887,1738282262138,-500.0,0.00019315,3]
[351005889,1738282262148,-500.0,0.00019315,3]
[351005891,1738282262158,-500.0,0.00019315,3]
[351005894,1738282262169,-575.94558958,0.00019315,3]
[351005896,1738282262180,-859.77,0.00019315,3]
[351005898,1738282262190,-440.6802247,0.00019315,3]
[351005900,1738282262200,-500.0,0.00019315,3]
[351005902,1738282262210,-1018.78,0.00019315,3]
[351005904,1738282262221,-2163.85,0.00019315,3]
[351005906,1738282262231,-500.0,0.00019315,3]
[351005908,1738282262242,-1088.02,0.00019315,3]
[351005910,1738282262252,-1275.59,0.00019315,3]
[351005912,1738282262263,-500.0,0.00019315,3]
[351005914,1738282262275,-545.79,0.00019315,3]
[351005916,1738282262285,-500.0,0.00019315,3]
[351005918,1738282262295,-862.91,0.00019315,3]
[351005921,1738282262305,-500.0,0.00019315,3]
[351005923,1738282262315,-500.0,0.00019315,3]
[351005925,1738282262324,-1442.45,0.00019315,3]
[351005927,1738282262334,-500.0,0.00019315,3]
[351005929,1738282262345,-1046.15,0.00019315,3]
[351005931,1738282262354,-500.0,0.00019315,3]
[351005933,1738282262364,-383.35464327,0.00019315,3]
[351005935,1738282262374,-539.31,0.00019315,3]
[351005937,1738282262384,-709.55,0.00019315,2]
[351005939,1738282262394,-2026.37,0.00019315,3]
[351005941,1738282262407,-708.32,0.00019315,3]
[351005943,1738282262416,-2950.82,0.00019315,3]
[351005945,1738282262426,-500.0,0.00019315,3]
[351005947,1738282262435,-515.24620271,0.00019315,3]
[351005949,1738282262445,-757.7,0.00019315,3]
[351005952,1738282262455,-1866.75,0.00019315,3]
[351005954,1738282262466,-500.0,0.00019315,3]
[351005956,1738282262476,-1161.21,0.00019315,3]
[351005958,1738282262487,-910.43,0.00019315,3]
[351005960,1738282262497,-500.0,0.00019315,3]
[351005962,1738282262508,-2734.34,0.00019315,3]
[351005964,1738282262518,-3754.21,0.00019315,3]
[351005966,1738282262528,-1311.32,0.00019315,3]
[351005968,1738282262538,-500.0,0.00019315,3]
[351005970,1738282262549,-6638.4540858,0.00019316,2]
[351005972,1738282262559,-288.148342,0.00019316,2]
[351005974,1738282262568,-756.9834095,0.00019316,2]
[351005976,1738282262578,-852.48426,0.00019316,2]
[351005979,1738282262588,-999.99,0.00019339,2]
[351005981,1738282262600,-9999.99,0.00019339,2]
[351005983,1738282262610,-150.99,0.00019339,2]
[351005985,1738282262620,-2062.47,0.00019339,2]
[351005987,1738282262629,-3763.21,0.00019339,2]
[351005989,1738282262639,-150.99,0.00019339,2]
[351005991,1738282262650,-6606.1,0.00019339,2]
[351005993,1738282262659,-9999.99,0.00019339,2]
[351005995,1738282262669,-150.0,0.00019342,3]
[351005997,1738282262681,-150.0,0.00019342,3]
[351005999,1738282262692,-800.0,0.00019342,3]
[351006001,1738282262702,-797.0,0.00019342,3]
[351006003,1738282262713,-150.0,0.0001937,3]
[351006005,1738282262723,-150.0,0.0001937,3]
[351006008,1738282262733,-150.0,0.00019397,3]
[351006010,1738282262744,-150.0,0.00019425,3]
[351006012,1738282262753,-272.77530802,0.00019425,2]
[351006014,1738282262767,-734.59,0.00019447,2]
[351006016,1738282262778,-300.0,0.00019451,2]
[351006018,1738282262789,-250.0,0.00019452,3]
[351006020,1738282262798,-850.993016,0.00019452,3]
[351006022,1738282262808,-1616.204201,0.00019452,3]
[351006024,1738282262818,-500.0,0.00019452,3]
[351006026,1738282262827,-500.0,0.00019452,3]
[351006028,1738282262837,-934.69,0.00019452,3]
[351006030,1738282262848,-1224.98,0.00019452,3]
[351006032,1738282262857,-500.0,0.00019452,3]
[351006034,1738282262867,-730.27,0.00019452,3]
[351006036,1738282262877,-500.0,0.00019452,3]
[351006038,1738282262887,-1235.83,0.00019452,3]
[351006040,1738282262897,-1029.32,0.00019452,3]
[351006042,1738282262907,-500.0,0.00019452,3]
[351006044,1738282262916,-500.0,0.00019452,3]
[351006046,1738282262926,-500.0,0.00019452,3]
[351006047,1738282262935,-500.0,0.00019452,3]
[351006048,1738282262944,-986.18,0.00019452,3]
[351006049,1738282262953,-500.0,0.00019452,3]
[351006050,1738282262963,-500.0,0.00019452,3]
[351006051,1738282262972,-766.7,0.00019452,3]
[351006052,1738282262983,-778.04,0.00019452,3]
[351006053,1738282262993,-583.89445416,0.00019452,3]
[351006055,1738282263003,-294.30673798,0.00019452,3]
[351006057,1738282263013,-500.0,0.00019452,3]
[351006060,1738282263023,-500.0,0.00019452,3]
[351006062,1738282263033,-367.42927212,0.00019452,3]
[351006064,1738282263044,-500.0,0.00019452,3]
[351006066,1738282263055,-872.39,0.00019452,3]
[351006068,1738282263066,-500.0,0.00019452,3]
[351006070,1738282263077,-500.0,0.00019452,3]
[351006072,1738282263087,-1043.16,0.00019452,3]
[351006074,1738282263097,-652.48,0.00019452,3]
[351006076,1738282263108,-500.0,0.00019452,3]
[351006078,1738282263119,-1066.89,0.00019452,3]
[351006080,1738282263130,-500.0,0.00019452,3]
[351006082,1738282263139,-615.14,0.00019452,3]
[351006084,1738282263149,-500.0,0.00019452,3]
[351006086,1738282263159,-500.0,0.00019452,3]
[351006088,1738282263171,-640.21,0.00019452,3]
[351006090,1738282263181,-659.89,0.00019452,3]
[351006092,1738282263191,-530.34,0.00019452,3]
[351006095,1738282263202,-500.0,0.00019452,3]
[351006097,1738282263212,-500.0,0.00019452,3]
[351006099,1738282263223,-500.0,0.00019452,3]
[351006101,1738282263234,-500.0,0.00019452,3]
[351006103,1738282263245,-422.99678873,0.00019452,3]
[351006105,1738282263255,-500.0,0.00019452,3]
[351006107,1738282263266,-544.17,0.00019452,3]
[351006109,1738282263276,-1346.25,0.00019452,3]
[351006111,1738282263288,-500.0,0.00019452,3]
[351006113,1738282263298,-500.0,0.00019452,3]
[351006115,1738282263309,-500.0,0.00019452,3]
[351006117,1738282263321,-500.0,0.00019452,3]
[351006119,1738282263332,-500.0,0.00019452,3]
[351006121,1738282263343,-500.0,0.00019452,3]
[351006123,1738282263353,-500.0,0.00019452,3]
[351006125,1738282263363,-500.0,0.00019452,3]
[351006128,1738282263374,-500.0,0.00019452,3]
[351006130,1738282263385,-500.0,0.00019452,3]
[351006132,1738282263395,-1027.38,0.00019452,3]
[351006134,1738282263406,-500.0,0.00019452,3]
[351006136,1738282263416,-1185.73,0.00019452,3]
[351006138,1738282263427,-500.0,0.00019452,3]
[351006140,1738282263439,-417.64158346,0.00019452,3]
[351006142,1738282263450,-500.0,0.00019452,3]
[351006145,1738282263461,-500.0,0.00019452,3]
[351006147,1738282263472,-550.01,0.00019452,3]
[351006149,1738282263482,-1314.59,0.00019452,3]
[351006151,1738282263493,-716.27,0.00019452,3]
[351006153,1738282263504,-500.0,0.00019452,3]
[351006155,1738282263513,-663.68,0.00019452,3]
[351006157,1738282263524,-500.0,0.00019452,3]
[351006159,1738282263535,-500.0,0.00019452,3]
[351006161,1738282263545,-500.0,0.00019452,3]
[351006163,1738282263556,-500.0,0.00019452,3]
[351006165,1738282263567,-500.0,0.00019452,3]
[351006167,1738282263577,-500.0,0.00019452,3]
[351006169,1738282263587,-500.0,0.00019452,3]
[351006171,1738282263599,-160.18013807,0.00019452,3]
[351006173,1738282263610,-500.0,0.00019452,3]
[351006175,1738282263621,-509.29,0.00019452,3]
[351006177,1738282263631,-686.25,0.00019452,3]
[351006180,1738282263642,-347.82686896,0.00019452,3]
[351006182,1738282263651,-547.73,0.00019452,3]
[351006184,1738282263662,-962.72,0.00019452,3]
[351006186,1738282263673,-1785.725684,0.00019452,3]
[351006188,1738282263686,-500.0,0.00019452,3]
[351006190,1738282263696,-747.92,0.00019452,3]
[351006192,1738282263706,-1163.4,0.00019452,3]
[351006194,1738282263717,-153.48005,0.00019452,3]
[351006196,1738282263728,-500.0,0.00019452,3]
[351006198,1738282263738,-1727.29,0.00019452,3]
[351006200,1738282263749,-500.0,0.00019452,3]
[351006202,1738282263760,-2570.17,0.00019452,3]
[351006204,1738282263769,-1209.23,0.00019452,3]
[351006206,1738282263780,-526.09124995,0.00019452,3]
[351006208,1738282263791,-2025.48,0.00019452,3]
[351006210,1738282263802,-801.2,0.00019452,3]
[351006212,1738282263812,-500.0,0.00019452,3]
[351006214,1738282263823,-500.0,0.00019452,3]
[351006216,1738282263833,-376.23199,0.00019452,3]
[351006218,1738282263843,-500.0,0.00019452,3]
[351006220,1738282263854,-500.0,0.00019452,3]
[351006222,1738282263865,-511.26,0.00019452,3]
[351006224,1738282263875,-500.0,0.00019452,3]
[351006226,1738282263884,-2653.36,0.00019452,3]
[351006228,1738282263894,-1001.16,0.00019452,3]
[351006230,1738282263904,-1429.68156,0.00019452,3]
[351006233,1738282263914,-500.0,0.00019452,3]
[351006235,1738282263924,-742.43,0.00019452,3]
[351006237,1738282263934,-2157.54,0.00019452,3]
[351006239,1738282263944,-500.0,0.00019452,3]
[351006241,1738282263957,-500.0,0.00019452,3]
[351006243,1738282263967,-500.0,0.00019452,3]
[351006245,1738282263978,-500.0,0.00019452,3]
[351006247,1738282263988,-2159.3,0.00019452,3]
[351006249,1738282263999,-500.0,0.00019452,3]
[351006251,1738282264010,-1324.84,0.00019452,3]
[351006253,1738282264021,-500.0,0.00019452,3]
[351006255,1738282264032,-700.53,0.00019452,3]
[351006258,1738282264042,-545.82277364,0.00019452,3]
[351006260,1738282264053,-500.0,0.00019452,3]
[351006262,1738282264065,-500.0,0.00019452,3]
[351006264,1738282264076,-503.18,0.00019452,3]
[351006266,1738282264087,-653.35,0.00019452,3]
[351006268,1738282264099,-500.0,0.00019452,3]
[351006270,1738282264109,-500.0,0.00019452,3]
[351006272,1738282264122,-500.0,0.00019452,3]
[351006274,1738282264132,-500.0,0.00019452,3]
[351006275,1738282264144,-500.0,0.00019452,3]
[351006276,1738282264154,-500.0,0.00019452,3]
[351006277,1738282264165,-1468.55,0.00019452,3]
[351006278,1738282264176,-500.0,0.00019452,2]
[351006279,1738282264188,-696.41,0.00019452,3]
[351006281,1738282264198,-860.62,0.00019452,3]
[351006283,1738282264208,-665.07,0.00019452,3]
[351006285,1738282264219,-287.2423818,0.00019452,3]
[351006287,1738282264229,-500.0,0.00019452,3]
[351006289,1738282264240,-500.0,0.00019452,3]
[351006291,1738282264249,-2209.06,0.00019452,3]
[351006293,1738282264260,-1267.03,0.00019452,3]
[351006295,1738282264271,-507.66,0.00019452,3]
[351006297,1738282264282,-1049.05,0.00019452,3]
[351006300,1738282264294,-500.0,0.00019452,3]
[351006302,1738282264305,-1569.67,0.00019452,3]
[351006304,1738282264317,-964.9,0.00019452,3]
[351006306,1738282264328,-1491.92,0.00019452,3]
[351006308,1738282264340,-500.0,0.00019452,3]
[351006334,1738282264583,-524.48186199,0.00019452,3]
[351006336,1738282264595,-500.0,0.00019452,3]
[351006338,1738282264606,-2385.82,0.00019452,3]
[351006340,1738282264616,-500.0,0.00019452,3]
[351006342,1738282264627,-1996.03,0.00019452,3]
[351006344,1738282264638,-500.0,0.00019452,3]
[351006346,1738282264648,-500.0,0.00019452,3]
[351006348,1738282264659,-500.0,0.00019452,3]
[351006350,1738282264669,-500.0,0.00019452,3]
[351006352,1738282264680,-799.92,0.00019452,3]
[351006355,1738282264694,-1931.5,0.00019452,3]
[351006357,1738282264703,-500.0,0.00019452,3]
[351006359,1738282264713,-714.4,0.00019452,3]
[351006361,1738282264724,-1103.45,0.00019452,3]
[351006363,1738282264735,-500.0,0.00019452,3]
[351006365,1738282264745,-500.0,0.00019452,3]
[351006367,1738282264755,-440.30345599,0.00019452,3]
[351006369,1738282264767,-500.0,0.00019452,3]
[351006371,1738282264778,-695.08,0.00019452,3]
[351006373,1738282264787,-1303.61,0.00019452,3]
[351006375,1738282264797,-500.0,0.00019452,3]
[351006377,1738282264807,-241.55888075,0.00019452,3]
[351006379,1738282264817,-500.0,0.00019452,3]
[351006381,1738282264827,-500.0,0.00019452,3]
[351006383,1738282264837,-500.0,0.00019452,3]
[351006385,1738282264847,-811.08,0.00019452,3]
[351006387,1738282264857,-500.0,0.00019452,3]
[351006389,1738282264867,-1539.27,0.00019452,3]
[351006391,1738282264877,-571.71,0.00019452,3]
[351006393,1738282264887,-500.0,0.00019452,3]
[351006395,1738282264897,-951.99,0.00019452,3]
[351006397,1738282264907,-1128.99,0.00019452,3]
[351006399,1738282264917,-500.0,0.00019452,3]
[351006401,1738282264927,-963.67,0.00019452,3]
[351006403,1738282264936,-3077.38,0.00019452,3]
[351006405,1738282264946,-834.8,0.00019452,3]
[351006407,1738282264955,-500.0,0.00019452,3]
[351006409,1738282264965,-1093.45,0.00019452,3]
[351006411,1738282264976,-500.0,0.00019452,3]
[351006413,1738282264986,-913.95,0.00019452,3]
[351006415,1738282265002,-500.0,0.00019452,3]
[351006417,1738282265012,-500.0,0.00019452,3]
[351006420,1738282265023,-561.52,0.00019452,3]
[351006422,1738282265033,-500.0,0.00019452,3]
[351006424,1738282265044,-500.0,0.00019452,3]
[351006426,1738282265054,-905.8,0.00019452,3]
[351006428,1738282265064,-500.0,0.00019452,3]
[351006430,1738282265075,-1054.93,0.00019452,3]
[351006432,1738282265085,-1221.47,0.00019452,3]
[351006434,1738282265095,-500.0,0.00019452,3]
[351006436,1738282265106,-500.0,0.00019452,3]
[351006438,1738282265117,-654.68,0.00019452,3]
[351006440,1738282265128,-1133.01,0.00019452,3]
[351006442,1738282265138,-1569.31,0.00019452,3]
[351006444,1738282265148,-500.0,0.00019452,3]
[351006446,1738282265159,-500.0,0.00019452,3]
[351006448,1738282265169,-849.04,0.00019452,3]
[351006450,1738282265179,-500.0,0.00019452,3]
[351006452,1738282265189,-500.0,0.00019452,3]
[351006454,1738282265200,-500.0,0.00019452,3]
[351006456,1738282265209,-500.0,0.00019452,3]
[351006458,1738282265219,-837.24,0.00019452,3]
[351006460,1738282265230,-500.0,0.00019452,3]
[351006461,1738282265240,-500.0,0.00019452,3]
[351006462,1738282265250,-500.0,0.00019452,3]
[351006463,1738282265259,-1872.35,0.00019452,3]
[351006464,1738282265269,-500.0,0.00019452,3]
[351006465,1738282265279,-583.25,0.00019452,3]
[351006467,1738282265289,-517.98,0.00019452,3]
[351006469,1738282265299,-1511.84,0.00019452,3]
[351006471,1738282265309,-500.0,0.00019452,3]
[351006473,1738282265319,-1005.51,0.00019452,3]
[351006475,1738282265330,-500.0,0.00019452,3]
[351006477,1738282265348,-1127.03,0.00019452,3]
[351006479,1738282265358,-1600.12,0.00019452,3]
[351006481,1738282265368,-500.0,0.00019452,3]
[351006483,1738282265378,-632.61,0.00019452,3]
[351006485,1738282265391,-872.69,0.00019452,3]
[351006487,1738282265401,-2321.22,0.00019452,3]
[351006489,1738282265411,-1482.84,0.00019452,3]
[351006491,1738282265421,-500.0,0.00019452,3]
[351006493,1738282265431,-704.47,0.00019452,3]
[351006495,1738282265440,-2747.53,0.00019452,3]
[351006497,1738282265449,-1100.63,0.00019452,3]
[351006499,1738282265459,-571.97,0.00019452,3]
[351006501,1738282265469,-500.0,0.00019452,3]
[351006503,1738282265479,-1054.06,0.00019452,3]
[351006505,1738282265489,-500.0,0.00019452,3]
[351006507,1738282265499,-502.54,0.00019452,3]
[351006509,1738282265508,-500.0,0.00019452,3]
[351006511,1738282265519,-949.17,0.00019452,3]
[351006513,1738282265529,-632.21,0.00019452,3]
[351006515,1738282265538,-1506.63,0.00019452,3]
[351006517,1738282265548,-740.74,0.00019452,3]
[351006519,1738282265558,-500.0,0.00019452,3]
[351006521,1738282265568,-959.27,0.00019452,3]
[351006523,1738282265578,-1123.33,0.00019452,3]
[351006525,1738282265588,-510.67,0.00019452,3]
[351006527,1738282265598,-500.0,0.00019452,3]
[351006529,1738282265608,-959.07,0.00019452,3]
[351006531,1738282265618,-2274.95,0.00019452,3]